bitfinex/quotes_ETHUSD_20241019
["timestamp","ask_amount","ask_price","bid_price","bid_amount"]
[1729296002091,0.04139931,2640.7,2640.2,0.7708]
[1729296005423,0.04139931,2640.7,2639.9,0.7766]
[1729296006083,0.04139931,2640.7,2640.0,0.48754275]
[1729296006282,0.83467073,2640.7,2640.1,0.7766]
[1729296006483,0.04139931,2640.7,2640.2,0.48754275]
[1729296006683,0.04139931,2640.7,2640.3,0.7766]
[1729296007286,0.04139931,2640.7,2640.0,0.43491391]
[1729296007483,0.79327142,2640.6,2640.0,0.43491391]
[1729296007690,0.99572921,2640.5,2640.0,0.43491391]
[1729296007912,0.99572921,2640.5,2639.8,1.1553]
[1729296010901,0.99572921,2640.5,2639.8,1.64284275]
[1729296011097,0.99572921,2640.5,2639.9,0.48754275]
[1729296014203,0.79327142,2640.4,2639.9,0.48754275]
[1729296014539,0.99572921,2640.5,2639.9,0.48754275]
[1729296015036,1.18990714,2640.6,2639.9,0.48754275]
[1729296015037,0.79327142,2640.6,2639.9,0.7741]
[1729296015900,0.83467073,2640.7,2639.9,0.7741]
[1729296016944,0.79327142,2640.6,2639.9,0.7741]
[1729296017461,0.83467073,2640.7,2639.9,0.7741]
[1729296018553,0.83467073,2640.7,2639.9,3.7741]
[1729296019509,0.83467073,2640.7,2639.9,0.7741]
[1729296021915,0.79327142,2640.6,2639.9,0.7741]
[1729296022148,0.82897132,2640.6,2639.9,0.7741]
[1729296022666,0.0356999,2640.6,2639.9,0.7741]
[1729296023643,0.82897132,2640.6,2639.9,0.7741]
[1729296023948,0.0356999,2640.6,2639.9,0.7741]
[1729296025458,0.0356999,2640.6,2639.9,1.26164275]
[1729296025763,0.0356999,2640.6,2640.0,0.7741]
[1729296025920,0.0356999,2640.6,2640.0,3.79316505]
[1729296026118,0.0356999,2640.6,2640.1,0.7741]
[1729296026368,0.0356999,2640.6,2640.2,0.7931636]
[1729296027018,0.79327142,2640.7,2640.2,0.7931636]
[1729296027221,0.0333265,2640.5,2640.2,0.7931636]
[1729296027525,0.03332629,2640.4,2640.2,0.7931636]
[1729296028030,0.79327142,2640.7,2640.2,0.7741]
[1729296028245,0.03335332,2640.3,2640.2,0.7741]
[1729296028436,0.79327142,2640.7,2640.2,0.7741]
[1729296028632,0.03335332,2640.3,2640.2,0.7741]
[1729296029123,0.79327142,2640.7,2640.2,0.7741]
[1729296029318,0.03335332,2640.3,2640.2,0.7741]
[1729296029549,0.79327142,2640.7,2640.2,0.7741]
[1729296029751,0.03335332,2640.3,2640.2,0.7741]
[1729296030060,0.79327142,2640.7,2640.2,0.7741]
[1729296030227,0.03335332,2640.3,2640.2,0.7741]
[1729296030429,0.79327142,2640.6,2640.2,0.7741]
[1729296030761,0.79327142,2640.5,2640.0,1.22600102]
[1729296030951,0.82665235,2640.5,2640.0,1.22600102]
[1729296031261,0.79327142,2640.4,2640.0,0.45190102]
[1729296033475,0.79327142,2640.4,2640.2,0.12]
[1729296034976,0.79327142,2640.3,2640.2,0.12]
[1729296035340,0.79327142,2640.4,2640.2,0.12]
[1729296035559,1.15024098,2640.4,2640.2,0.12]
[1729296036739,0.35696956,2640.4,2640.2,0.12]
[1729296036968,0.79327142,2640.5,2640.2,0.12]
[1729296039471,0.79327142,2640.4,2640.2,0.12]
[1729296042750,0.79327142,2640.3,2640.2,0.12]
[1729296043342,0.79327142,2640.4,2640.2,0.12]
[1729296043544,0.79327142,2640.3,2640.2,0.12]
[1729296043744,0.79327142,2640.4,2640.2,0.12]
[1729296043984,0.19831786,2640.3,2640.2,0.12]
[1729296044288,2.13901872,2640.3,2640.2,0.12]
[1729296044577,1.94070086,2640.3,2640.2,0.12]
[1729296045170,2.90460975,2640.3,2640.2,0.12]
[1729296045373,2.33788345,2640.3,2640.2,0.12]
[1729296045549,2.90444948,2640.3,2640.2,0.12]
[1729296045883,3.43293838,2640.3,2640.2,0.12]
[1729296046263,2.76637235,2640.3,2640.2,0.12]
[1729296046751,3.33280618,2640.3,2640.2,0.12]
[1729296047280,2.76637235,2640.3,2640.2,0.12]
[1729296047679,1.9836996,2640.3,2640.2,0.12]
[1729296048389,0.56619574,2640.3,2640.2,0.12]
[1729296051472,0.55,2640.3,2640.2,0.12]
[1729296051749,3.4940018,2640.3,2640.2,0.12]
[1729296053904,3.49117698,2640.3,2640.2,0.12]
[1729296054274,4.00537363,2640.3,2640.2,0.12]
[1729296054487,1.63010605,2640.3,2640.2,0.12]
[1729296055256,4.00537363,2640.3,2640.2,0.12]
[1729296055552,1.63010605,2640.3,2640.2,0.12]
[1729296055796,1.62941258,2640.3,2640.2,0.12]
[1729296057280,1.06419665,2640.3,2640.2,0.12]
[1729296057481,3.04156403,2640.3,2640.2,0.12]
[1729296057903,2.52736738,2640.3,2640.2,0.12]
[1729296058056,1.97736738,2640.3,2640.2,0.12]
[1729296058400,0.79080067,2640.3,2640.2,0.12]
[1729296058707,1.18624389,2640.4,2640.2,0.12]
[1729296058708,0.79080067,2640.4,2640.2,0.12]
[1729296058900,0.79080067,2640.5,2640.2,0.12]
[1729296059262,0.79080067,2640.6,2640.2,0.12]
[1729296059571,1.14668991,2640.6,2640.2,0.12]
[1729296060263,0.79080067,2640.5,2640.2,0.12]
[1729296060463,1.14668991,2640.6,2640.2,0.12]
[1729296060692,0.79080067,2640.5,2640.2,0.12]
[1729296064408,0.79080067,2640.3,2640.2,0.12]
[1729296064567,0.35588924,2640.3,2640.2,0.12]
[1729296064768,1.54213313,2640.3,2640.2,0.12]
[1729296066762,0.35588924,2640.3,2640.2,0.12]
[1729296066968,1.54226802,2640.3,2640.2,0.12]
[1729296069925,0.54226802,2640.3,2640.2,0.12]
[1729296070134,0.7546796,2640.3,2640.2,0.12]
[1729296070345,0.21241158,2640.3,2640.2,0.12]
[1729296073038,1.79425938,2640.3,2640.2,0.12]
[1729296073218,0.21241158,2640.3,2640.2,0.12]
[1729296073542,2.14756966,2640.3,2640.2,0.12]
[1729296074211,0.56572186,2640.3,2640.2,0.12]
[1729296074413,1.11572186,2640.3,2640.2,0.12]
[1729296074623,1.46872152,2640.3,2640.2,0.12]
[1729296074938,3.84239192,2640.3,2640.2,0.12]
[1729296076148,1.46885995,2640.3,2640.2,0.12]
[1729296076324,3.84239192,2640.3,2640.2,0.12]
[1729296076632,1.46885995,2640.3,2640.2,0.12]
[1729296076835,3.84426017,2640.3,2640.2,0.12]
[1729296077141,0.55,2640.2,2639.4,0.00089104]
[1729296077299,0.79180956,2639.7,2639.4,0.00089104]
[1729296077712,1.58361913,2640.0,2639.4,0.00089104]
[1729296077713,0.79180956,2639.8,2639.4,0.00089104]
[1729296078350,0.79180956,2639.7,2639.4,0.00089104]
[1729296078510,0.79180956,2639.8,2639.4,0.00089104]
[1729296079359,1.18780864,2639.9,2639.4,0.00089104]
[1729296079360,0.79180956,2639.7,2639.4,0.00089104]
[1729296081030,0.79180956,2639.8,2639.4,0.00089104]
[1729296082164,0.79180956,2639.7,2639.4,0.00089104]
[1729296084325,0.79180956,2639.6,2639.4,0.00089104]
[1729296087059,0.71501617,2639.6,2639.4,0.00089104]
[1729296088426,1.18780864,2639.7,2639.4,0.00089104]
[1729296089335,1.18780864,2639.6,2639.4,0.00089104]
[1729296089732,1.18780864,2639.7,2639.4,0.00089104]
[1729296090846,1.58361913,2639.8,2639.4,0.00089104]
[1729296090847,1.18780864,2639.6,2639.4,0.00089104]
[1729296092538,1.18780864,2639.7,2639.4,0.00089104]
[1729296093342,1.18780864,2639.6,2639.4,0.00089104]
[1729296093968,1.18780864,2639.6,2639.5,0.00091087]
[1729296094479,0.82940721,2639.6,2639.5,0.00091087]
[1729296094786,2.45682361,2639.6,2639.5,0.00091087]
[1729296094936,1.39604281,2639.6,2639.5,0.00091087]
[1729296096284,0.92074723,2639.6,2639.5,0.00091087]
[1729296098173,2.33667329,2639.6,2639.5,0.00091087]
[1729296098860,0.92045498,2639.6,2639.5,0.00091087]
[1729296099249,2.90282049,2639.6,2639.5,0.00091087]
[1729296099451,2.33647714,2639.6,2639.5,0.00091087]
[1729296099789,2.80809711,2639.6,2639.5,0.00091087]
[1729296099945,1.39199213,2639.6,2639.5,0.00091087]
[1729296100147,2.8078609,2639.6,2639.5,0.00091087]
[1729296100492,1.39195913,2639.6,2639.5,0.00091087]
[1729296100703,3.37389824,2639.6,2639.5,0.00091087]
[1729296101283,1.39195913,2639.6,2639.5,0.00091087]
[1729296101475,3.37368957,2639.6,2639.5,0.00091087]
[1729296101674,1.39195913,2639.6,2639.5,0.00091087]
[1729296101861,1.39164461,2639.6,2639.5,0.00091087]
[1729296102063,3.37339296,2639.6,2639.5,0.00091087]
[1729296102258,1.39164461,2639.6,2639.5,0.00091087]
[1729296102460,3.37308547,2639.6,2639.5,0.00091087]
[1729296102658,0.8254756,2639.6,2639.5,0.00091087]
[1729296102883,1.39158245,2639.6,2639.5,0.00091087]
[1729296103086,2.80701226,2639.6,2639.5,0.00091087]
[1729296105589,2.80684951,2639.6,2639.5,0.11091087]
[1729296105791,3.37291627,2639.6,2639.5,0.11091087]
[1729296106293,2.80685645,2639.6,2639.5,0.11091087]
[1729296107362,3.37295341,2639.6,2639.5,0.11091087]
[1729296108179,2.80685645,2639.6,2639.5,0.11091087]
[1729296108999,1.39163143,2639.6,2639.5,0.11091087]
[1729296109799,0.47161997,2639.6,2639.5,0.11091087]
[1729296110165,1.39177159,2639.6,2639.5,0.11091087]
[1729296111863,1.94177159,2639.6,2639.5,0.11091087]
[1729296112171,1.47015162,2639.6,2639.5,0.11091087]
[1729296114097,1.4702778,2639.6,2639.5,0.11091087]
[1729296117891,1.47051806,2639.6,2639.5,0.11091087]
[1729296120999,3.84817508,2639.6,2639.5,0.11091087]
[1729296121200,4.23299259,2639.6,2639.5,0.11091087]
[1729296121769,1.85533557,2639.6,2639.5,0.11091087]
[1729296122105,4.23299259,2639.6,2639.5,0.11091087]
[1729296122604,4.23328369,2639.6,2639.5,0.11091087]
[1729296122812,1.85562667,2639.6,2639.5,0.11091087]
[1729296123178,4.23328369,2639.6,2639.5,0.11091087]
[1729296123416,1.47080916,2639.6,2639.5,0.11091087]
[1729296124179,3.84846618,2639.6,2639.5,0.11091087]
[1729296124579,3.85095111,2639.6,2639.5,0.11091087]
[1729296124911,1.47080916,2639.6,2639.5,0.11091087]
[1729296126077,1.85590427,2639.6,2639.5,0.11091087]
[1729296126801,1.30590427,2639.6,2639.5,0.11091087]
[1729296127400,1.27896127,2639.6,2639.5,0.11091087]
[1729296128693,0.89386616,2639.6,2639.5,0.11091087]
[1729296131430,3.27400811,2639.6,2639.5,0.11091087]
[1729296131616,0.89386616,2639.6,2639.5,0.11091087]
[1729296132018,3.27400811,2639.6,2639.5,0.11091087]
[1729296132215,0.89386616,2639.6,2639.5,0.11091087]
[1729296135231,0.35437889,2639.6,2639.5,0.11091087]
[1729296136429,2.73587896,2639.6,2639.5,0.11091087]
[1729296137109,0.35437889,2639.6,2639.5,0.88461087]
[1729296137312,1.94253178,2639.6,2639.5,0.88461087]
[1729296138112,0.35437889,2639.6,2639.5,0.88461087]
[1729296138310,1.94253178,2639.6,2639.5,0.88461087]
[1729296138618,0.35437889,2639.6,2639.5,0.88461087]
[1729296139227,1.54536886,2639.6,2639.5,0.88461087]
[1729296139423,0.35437889,2639.6,2639.5,0.88461087]
[1729296139626,1.94253178,2639.6,2639.5,0.88461087]
[1729296140136,1.5453356,2639.6,2639.5,0.88461087]
[1729296140335,1.94253178,2639.6,2639.5,0.88461087]
[1729296140637,1.54534063,2639.6,2639.5,0.88461087]
[1729296140942,1.94253178,2639.6,2639.5,0.88461087]
[1729296141125,1.54510905,2639.6,2639.5,0.88461087]
[1729296141295,1.54512225,2639.6,2639.5,0.88461087]
[1729296141498,1.5451148,2639.6,2639.5,0.88461087]
[1729296142049,0.79384634,2639.6,2639.5,0.88461087]
[1729296142261,0.79384634,2639.7,2639.5,0.88461087]
[1729296144230,0.79384634,2639.8,2639.5,0.88461087]
[1729296144760,0.79384634,2639.7,2639.5,0.88461087]
[1729296145273,0.79384634,2639.8,2639.5,0.88461087]
[1729296146236,0.79384634,2639.9,2639.5,0.88461087]
[1729296146431,0.79384634,2640.0,2639.5,0.88461087]
[1729296148021,0.79384634,2639.8,2639.5,0.88461087]
[1729296148442,0.79384634,2639.7,2639.5,0.88461087]
[1729296149150,0.79384634,2639.6,2639.5,0.88461087]
[1729296149538,0.79384634,2639.6,2639.5,0.11091087]
[1729296149756,0.35727426,2639.6,2639.5,0.11091087]
[1729296150189,2.69186561,2639.6,2639.5,0.11091087]
[1729296150484,1.27684981,2639.6,2639.5,0.11091087]
[1729296151680,3.25751705,2639.6,2639.5,0.11091087]
[1729296151845,2.33435941,2639.6,2639.5,0.11091087]
[1729296152045,0.35369217,2639.6,2639.5,0.11091087]
[1729296152271,0.9195762,2639.6,2639.5,0.11091087]
[1729296153378,0.91953617,2639.6,2639.5,0.11091087]
[1729296153565,2.66400905,2639.6,2639.5,0.11091087]
[1729296153734,2.66402463,2639.6,2639.5,0.11091087]
[1729296155488,2.31035687,2639.6,2639.5,0.11091087]
[1729296155779,2.66404562,2639.6,2639.5,0.11091087]
[1729296157993,0.35368875,2639.6,2639.5,0.11091087]
[1729296158179,1.93827012,2639.6,2639.5,0.90071087]
[1729296158710,0.35367646,2639.6,2639.5,0.90071087]
[1729296158915,1.18847002,2639.6,2639.5,0.90071087]
[1729296159420,1.18847002,2639.7,2639.5,0.90071087]
[1729296159602,1.18847002,2639.6,2639.5,0.90071087]
[1729296164727,1.18847002,2639.7,2639.5,0.90071087]
[1729296165087,1.18847002,2639.6,2639.5,0.90071087]
[1729296165526,1.18847002,2639.7,2639.5,0.90071087]
[1729296166031,1.18847002,2639.6,2639.5,0.90071087]
[1729296166989,1.18847002,2639.7,2639.5,0.90071087]
[1729296167414,1.18847002,2639.6,2639.5,0.90071087]
[1729296168027,1.18847002,2639.7,2639.5,0.90071087]
[1729296168390,0.79218671,2639.6,2639.5,0.90071087]
[1729296168990,1.18847002,2639.6,2639.5,0.90071087]
[1729296172743,0.79230626,2639.6,2639.5,0.90071087]
[1729296173778,0.79230626,2639.7,2639.5,0.90071087]
[1729296180992,0.79230626,2639.6,2639.5,0.90071087]
[1729296182292,1.18847002,2639.6,2639.5,0.90071087]
[1729296183482,1.18847002,2639.6,2639.5,0.11091087]
[1729296184113,0.35369375,2639.6,2639.5,0.11091087]
[1729296184502,1.93827512,2639.6,2639.5,0.11091087]
[1729296184898,1.92815841,2639.6,2639.5,0.11091087]
[1729296185716,1.58458137,2639.6,2639.5,0.11091087]
[1729296189715,0.35652889,2639.6,2639.5,0.11091087]
[1729296189889,2.33723645,2639.6,2639.5,0.11091087]
[1729296191203,2.90311197,2639.6,2639.5,0.11091087]
[1729296191503,2.33720726,2639.6,2639.5,0.11091087]
[1729296192313,2.90314052,2639.6,2639.5,0.11091087]
[1729296192916,2.33720726,2639.6,2639.5,0.11091087]
[1729296193257,0.92245922,2639.6,2639.5,0.11091087]
[1729296195350,0.35652889,2639.6,2639.5,0.11091087]
[1729296195644,2.33782778,2639.6,2639.5,0.11091087]
[1729296195833,2.90389972,2639.6,2639.5,0.11091087]
[1729296196204,0.92260083,2639.6,2639.5,0.11091087]
[1729296196448,2.90381518,2639.6,2639.5,0.11091087]
[1729296196902,3.25761124,2639.6,2639.5,0.11091087]
[1729296197503,2.33774324,2639.6,2639.5,0.11091087]
[1729296197741,3.25773002,2639.6,2639.5,0.11091087]
[1729296198447,2.69165529,2639.6,2639.5,0.11091087]
[1729296198941,3.25776886,2639.6,2639.5,0.11091087]
[1729296199142,2.90123997,2639.6,2639.5,0.11091087]
[1729296199353,0.3537967,2639.6,2639.5,0.94121087]
[1729296199649,1.9813297,2639.7,2639.5,0.94121087]
[1729296199650,1.18913804,2639.7,2639.5,0.94121087]
[1729296199833,0.79276757,2639.6,2639.5,0.94121087]
[1729296203846,0.79276757,2639.7,2639.5,0.94121087]
[1729296204146,0.79276757,2639.6,2639.5,0.94121087]
[1729296205744,0.79276757,2639.7,2639.5,0.94121087]
[1729296206719,0.79276757,2639.6,2639.5,0.94121087]
[1729296207319,0.79276757,2639.7,2639.5,0.94121087]
[1729296208756,0.79276757,2639.8,2639.5,0.94121087]
[1729296209191,1.18913804,2640.0,2639.5,0.94121087]
[1729296209192,0.79276757,2639.9,2639.5,0.94121087]
[1729296210620,0.79276757,2640.0,2639.5,0.94121087]
[1729296210817,0.79276757,2640.3,2639.5,0.94121087]
[1729296215489,0.79276757,2640.4,2639.6,0.8018]
[1729296216335,0.79276757,2640.5,2639.7,0.55]
[1729296216539,0.79276757,2640.7,2639.8,0.55]
[1729296216778,0.79276757,2640.7,2639.9,0.8018]
[1729296217478,0.79276757,2640.8,2639.9,0.8018]
[1729296217676,0.79276757,2640.7,2639.8,0.55]
[1729296219998,0.79276757,2641.1,2640.0,0.55]
[1729296220279,0.79276757,2641.2,2640.1,0.8018]
[1729296220992,0.79276757,2641.2,2640.3,0.8018]
[1729296221154,0.79276757,2641.3,2640.3,0.8018]
[1729296221566,0.79276757,2641.4,2640.5,0.8018]
[1729296222105,0.79276757,2641.5,2640.5,0.8018]
[1729296222606,0.79276757,2641.6,2640.5,0.8018]
[1729296222757,1.18913804,2641.7,2640.5,0.8018]
[1729296222758,0.79276757,2641.5,2640.5,0.8018]
[1729296222959,0.79276757,2641.5,2640.7,0.8018]
[1729296223181,0.79276757,2641.6,2640.7,0.8018]
[1729296225670,0.79276757,2641.7,2640.7,0.8018]
[1729296227057,0.79276757,2641.8,2640.7,0.8018]
[1729296227256,0.79276757,2641.9,2640.8,0.8018]
[1729296228196,3.15817986,2642.3,2641.0,0.8018]
[1729296229481,2.36541229,2642.3,2641.0,0.8018]
[1729296229678,2.36541229,2642.3,2641.2,0.8018]
[1729296232819,0.0008,2642.5,2641.2,0.8018]
[1729296234317,0.0008,2642.5,2641.3,3.0]
[1729296234518,0.0008,2642.5,2641.4,0.8053]
[1729296240703,0.5508,2642.5,2641.4,0.8053]
[1729296240902,1.34356757,2642.5,2641.4,0.8053]
[1729296241097,0.55,2642.3,2640.8,0.8062]
[1729296241329,0.55,2642.1,2640.8,0.8062]
[1729296242154,1.34276757,2642.1,2640.8,0.8062]
[1729296244207,0.55,2641.9,2640.8,0.8062]
[1729296244835,1.34276757,2641.9,2640.8,0.8062]
[1729296245524,1.04595813,2641.8,2640.8,0.8062]
[1729296246039,0.25319056,2641.8,2640.8,0.8062]
[1729296246547,1.04595813,2641.8,2640.8,0.8062]
[1729296249248,0.79276757,2641.7,2640.8,0.8062]
[1729296249548,0.79276757,2641.6,2640.8,0.8062]
[1729296249761,0.19819056,2641.5,2640.8,0.8062]
[1729296251671,0.99095813,2641.5,2640.8,0.8062]
[1729296251829,0.79276757,2641.5,2640.8,0.8062]
[1729296252230,1.18913804,2641.7,2640.8,0.8062]
[1729296252231,0.79276757,2641.6,2640.8,0.8062]
[1729296252465,0.79276757,2641.5,2640.8,0.8062]
[1729296254532,0.79276757,2641.4,2640.8,0.8062]
[1729296256083,0.79276757,2641.5,2640.8,0.8062]
[1729296258395,0.79276757,2641.4,2640.8,0.8062]
[1729296258570,0.79276757,2641.5,2640.8,0.8062]
[1729296258749,0.79276757,2641.4,2640.8,0.8062]
[1729296261153,0.79276757,2641.3,2640.8,0.8062]
[1729296263554,0.79276757,2641.5,2640.8,0.8062]
[1729296264008,0.79276757,2641.6,2640.8,0.8062]
[1729296265450,0.79276757,2641.5,2640.8,0.8062]
[1729296265668,0.79276757,2641.6,2640.8,0.8062]
[1729296265918,0.79276757,2641.6,2641.0,0.7712]
[1729296266219,0.79276757,2641.7,2641.0,0.7712]
[1729296267281,1.18913804,2641.8,2641.0,0.7712]
[1729296267282,0.79276757,2641.8,2641.0,0.7712]
[1729296267483,1.98190561,2641.9,2641.0,0.7712]
[1729296267677,0.79276757,2641.9,2641.0,0.7712]
[1729296267872,0.79276757,2641.8,2641.0,0.7712]
[1729296268918,0.79276757,2641.7,2641.0,0.7712]
[1729296269213,0.79276757,2641.7,2641.0,3.0]
[1729296269378,0.79276757,2641.7,2641.1,0.7712]
[1729296269710,0.79276757,2641.7,2641.2,0.7712]
[1729296278727,0.79276757,2641.5,2641.2,0.7712]
[1729296278921,0.79276757,2641.4,2641.2,0.7712]
[1729296279273,0.79276757,2641.3,2641.2,0.7712]
[1729296280522,0.79135486,2641.3,2641.2,0.7712]
[1729296281079,1.18913804,2641.4,2641.2,0.7712]
[1729296281381,0.79137635,2641.3,2641.2,0.7712]
[1729296281549,1.18913804,2641.4,2641.2,0.7712]
[1729296281757,0.7914661,2641.3,2641.2,0.7712]
[1729296282284,1.18913804,2641.4,2641.2,0.7712]
[1729296282777,1.18913804,2641.3,2641.2,0.7712]
[1729296283137,1.18913804,2641.4,2641.2,0.7712]
[1729296283539,1.18913804,2641.3,2641.2,0.7712]
[1729296285553,1.58547524,2641.4,2641.2,0.7712]
[1729296285774,1.18822503,2641.3,2641.2,0.7712]
[1729296285969,1.31001772,2641.3,2641.2,0.7712]
[1729296286160,1.18823706,2641.3,2641.2,0.7712]
[1729296286486,1.58547524,2641.4,2641.2,0.7712]
[1729296287186,2.89555202,2641.3,2641.2,0.7712]
[1729296287385,1.67591985,2641.3,2640.8,0.8189]
[1729296287610,0.79219032,2641.1,2640.8,0.8189]
[1729296287947,0.79219032,2641.0,2640.8,0.8189]
[1729296289419,0.79212896,2641.1,2640.8,0.8189]
[1729296289584,0.79218257,2641.1,2640.8,0.8189]
[1729296296099,1.18824615,2641.2,2640.8,0.8189]
[1729296296259,0.79221797,2641.1,2640.8,0.8189]
[1729296297456,0.79221797,2641.0,2640.8,0.8189]
[1729296297660,0.79221797,2640.9,2640.8,0.8189]
[1729296298401,0.79221797,2641.0,2640.8,0.8189]
[1729296298554,0.79224972,2640.9,2640.8,0.8189]
[1729296301021,0.79224972,2641.0,2640.8,0.8189]
[1729296301370,0.79224972,2640.9,2640.6,0.8221]
[1729296301709,0.79224972,2640.8,2640.6,0.8221]
[1729296302039,0.79224972,2640.7,2640.2,0.8221]
[1729296302209,0.79212789,2640.5,2640.2,0.8221]
[1729296302407,0.79212789,2640.6,2640.2,0.8221]
[1729296306079,0.79212789,2640.7,2640.2,0.8221]
[1729296308711,0.79212789,2640.6,2640.2,0.8221]
[1729296310088,0.79212789,2640.7,2640.2,0.8221]
[1729296311423,0.79212789,2640.6,2640.2,0.8221]
[1729296312029,0.79212789,2640.7,2640.2,0.8221]
[1729296313431,0.79212789,2640.9,2640.2,0.8221]
[1729296313983,0.79212789,2641.1,2640.4,0.7578]
[1729296314578,0.79212789,2641.1,2641.0,3.7578]
[1729296314784,0.79212789,2641.1,2641.0,0.7578]
[1729296317223,1.1884491,2641.1,2640.4,0.7578]
[1729296317431,0.79185333,2641.0,2640.4,0.7578]
[1729296317575,0.79185333,2640.9,2640.4,0.7578]
[1729296317783,0.79185333,2640.8,2640.4,0.7578]
[1729296319105,0.79185333,2640.9,2640.4,0.7578]
[1729296319300,0.79185333,2640.8,2640.4,0.7578]
[1729296320056,0.79185333,2640.9,2640.4,0.7578]
[1729296323307,0.79185333,2640.8,2640.4,0.7578]
[1729296323818,0.79185333,2640.9,2640.4,0.7578]
[1729296324205,0.79185333,2640.8,2640.4,0.7578]
[1729296330246,0.79185333,2640.8,2640.6,0.7685]
[1729296332306,0.10346858,2640.7,2640.6,0.7685]
[1729296332512,0.79185333,2640.8,2640.6,0.7685]
[1729296332838,0.10348218,2640.7,2640.6,0.7685]
[1729296333245,0.79185333,2640.8,2640.6,0.7685]
[1729296333455,0.10348218,2640.7,2640.6,0.7685]
[1729296333833,0.79185333,2640.8,2640.6,0.7685]
[1729296334180,0.10348218,2640.7,2640.6,0.7685]
[1729296334332,0.79185333,2640.8,2640.6,0.7685]
[1729296334530,0.10348218,2640.7,2640.6,0.7685]
[1729296334853,0.79185333,2640.8,2640.6,0.7685]
[1729296335059,0.10348218,2640.7,2640.6,0.7685]
[1729296335766,0.79185333,2640.8,2640.6,0.7685]
[1729296335973,0.10348218,2640.7,2640.6,0.7685]
[1729296336145,0.79185333,2640.8,2640.6,0.7685]
[1729296336340,0.10348218,2640.7,2640.6,0.7685]
[1729296336674,0.79185333,2640.8,2640.6,0.7685]
[1729296336834,0.10348218,2640.7,2640.6,0.7685]
[1729296337174,0.79185333,2640.8,2640.6,0.7685]
[1729296337329,0.10348218,2640.7,2640.6,0.7685]
[1729296337534,0.79185333,2640.8,2640.6,0.7685]
[1729296337729,0.10348218,2640.7,2640.6,0.7685]
[1729296337935,0.79185333,2640.8,2640.6,0.7685]
[1729296338136,0.10347198,2640.7,2640.6,0.7685]
[1729296338382,0.79185333,2640.8,2640.6,0.7685]
[1729296338535,0.10347198,2640.7,2640.6,0.7685]
[1729296338741,0.79185333,2640.8,2640.6,0.7685]
[1729296339042,0.10347198,2640.7,2640.6,0.7685]
[1729296339466,0.79185333,2640.8,2640.6,0.7685]
[1729296339772,0.10347198,2640.7,2640.6,0.7685]
[1729296339976,0.79185333,2640.8,2640.6,0.7685]
[1729296340146,0.10342437,2640.7,2640.6,0.7685]
[1729296340343,0.79185333,2640.7,2640.6,0.7685]
[1729296340561,0.8952777,2640.7,2640.6,0.7685]
[1729296341933,0.8952777,2640.7,2640.3,0.7525]
[1729296342381,0.79185333,2640.6,2640.3,0.7525]
[1729296342564,0.10075222,2640.5,2640.3,0.7525]
[1729296343233,0.79185333,2640.6,2640.3,0.7525]
[1729296343433,0.10074111,2640.4,2640.3,0.7525]
[1729296343633,0.79185333,2640.6,2640.3,0.7525]
[1729296343864,0.10074111,2640.4,2640.3,0.7525]
[1729296344075,0.79185333,2640.6,2640.3,0.7525]
[1729296344687,0.10075222,2640.5,2640.3,0.7525]
[1729296346247,0.79185333,2640.7,2640.3,0.7525]
[1729296346445,0.10074111,2640.4,2640.3,0.7525]
[1729296346643,0.79185333,2640.7,2640.3,0.7525]
[1729296346896,0.10074111,2640.4,2640.3,0.7525]
[1729296347059,0.79185333,2640.6,2640.3,0.7525]
[1729296347262,0.10074111,2640.4,2640.3,0.7525]
[1729296347461,0.79185333,2640.6,2640.3,0.7525]
[1729296347685,0.10074111,2640.4,2640.3,0.7525]
[1729296347864,0.79185333,2640.6,2640.3,0.7525]
[1729296348060,0.10074111,2640.4,2640.3,0.7525]
[1729296348257,0.79185333,2640.6,2640.3,0.7525]
[1729296348467,0.10074111,2640.4,2640.3,0.7525]
[1729296348682,0.79185333,2640.6,2640.3,0.7525]
[1729296348883,0.10074111,2640.4,2640.3,0.7525]
[1729296349492,0.79185333,2640.6,2640.3,0.7525]
[1729296350027,0.10073182,2640.5,2640.3,0.7525]
[1729296358105,0.89258515,2640.5,2640.3,0.7525]
[1729296359894,0.79185333,2640.5,2640.3,0.7525]
[1729296360201,0.10071391,2640.4,2640.3,0.7525]
[1729296363069,0.89256724,2640.4,2640.2,0.00084085]
[1729296363277,1.1884491,2640.3,2640.2,0.00084085]
[1729296363594,3.00022357,2640.3,2640.2,0.00084085]
[1729296364201,1.29211939,2640.3,2640.2,0.00084085]
[1729296364510,1.41425474,2640.3,2640.2,0.00084085]
[1729296364726,4.24118898,2640.3,2640.2,0.00084085]
[1729296365010,5.2057086,2640.3,2640.2,0.00084085]
[1729296365165,2.82246198,2640.3,2640.2,0.00084085]
[1729296365371,5.2057086,2640.3,2640.2,0.00084085]
[1729296366184,2.82246198,2640.3,2640.2,0.00084085]
[1729296367321,4.23743543,2640.3,2640.2,0.00084085]
[1729296367514,2.25515013,2640.3,2640.2,0.00084085]
[1729296367674,1.76878678,2640.3,2640.2,0.00084085]
[1729296368071,2.43744479,2640.3,2640.2,0.00084085]
[1729296368271,3.75101819,2640.3,2640.2,0.00084085]
[1729296370214,1.76878678,2640.3,2640.2,0.00084085]
[1729296370670,3.75101819,2640.3,2640.2,0.00084085]
[1729296370870,4.12612001,2640.3,2640.2,0.00084085]
[1729296371070,2.1438886,2640.3,2640.2,0.00084085]
[1729296371911,1.78934742,2640.3,2640.2,0.00084085]
[1729296372136,2.05967878,2640.3,2640.2,0.00084085]
[1729296372787,3.37325218,2640.3,2640.2,0.00084085]
[1729296378084,1.78934742,2640.3,2640.2,0.00084085]
[1729296378533,1.66244737,2640.3,2640.2,0.00084085]
[1729296380358,1.78390045,2640.3,2640.2,0.00084085]
[1729296380505,1.66227899,2640.3,2640.2,0.00084085]
[1729296390649,1.28717717,2640.3,2640.2,0.00084085]
[1729296393953,1.23717717,2640.3,2640.2,0.00083823]
[1729296394249,1.27772978,2640.3,2640.2,0.00083823]
[1729296398162,1.39934357,2640.3,2640.2,0.00083823]
[1729296399017,2.98324833,2640.3,2640.2,0.00083823]
[1729296399716,3.33648549,2640.3,2640.2,0.00083823]
[1729296399915,2.98324833,2640.3,2640.2,0.00083823]
[1729296400225,3.33649857,2640.3,2640.2,0.00083823]
[1729296400859,1.75259381,2640.3,2640.2,0.00083823]
[1729296401068,3.73008852,2640.3,2640.2,0.00083823]
[1729296402065,3.73136768,2640.3,2640.2,0.00083823]
[1729296402251,3.37811744,2640.3,2640.2,0.00083823]